Cogmind - Beta 11 @@@ ROGUE MODE // 2022.03.21 @ 20:53:55 Player: drchaos820 Result: Destroyed by D-53 Grenadier with Mini Grenade Launcher Performance ------------- Evolutions (0) 0 Regions Visited (2) 400 Robots Destroyed (16) 80 Value Destroyed (344) 344 Prototype IDs (0) 0 Alien Tech Used (0) 0 Bonus (0) 0 TOTAL SCORE: 824 Bonus ------- None Cogmind --------- Core Integrity 0/250 Matter 200/300 Energy 100/100 System Corruption 6% Temperature Cool (0) Movement Walking (120) Location -10/Mines Parts ------- > --- POWER (1) -------- (None) > --- PROPULSION (2) --- Aluminum Leg > --- UTILITY (2) ------ Medium Storage Unit > --- WEAPON (2) ------- (None) > --- INVENTORY (10) --- Heat Sink Large Matter Pod (87) Transport Network Coupler Targeting Computer Weapon Shielding Grenade Launcher Peak State ------------ > --- POWER ------------ Light Ion Engine > --- PROPULSION ------- Aluminum Leg Aluminum Leg > --- UTILITY ---------- Heat Sink Large Matter Pod > --- WEAPON ----------- Medium Laser Assault Rifle > --- INVENTORY -------- Ion Engine Aluminum Leg Small Laser [Rating: 7] Favorites ----------- Power Ion Engine Engine Ion Engine Propulsion Aluminum Leg Leg Aluminum Leg Utility Terrain Scanner Device Terrain Scanner Storage Medium Storage Unit Weapon Assault Rifle Energy Gun Medium Laser Ballistic Gun Assault Rifle Build | -11 -10 -10 ------- Run | Scr Mat Min Slots Evolved . | . . . Power . | . . . Propulsion . | . . . Utility . | . . . Weapon . | . . . Parts Attached 17 | 6 8 3 Power 2 | 1 1 . Engine 2 | 1 1 . Core . | . . . Reactor . | . . . Propulsion 7 | 2 3 2 Treads . | . . . Leg 7 | 2 3 2 Wheel . | . . . Hover . | . . . Flight . | . . . Utility 5 | 1 4 . Device 3 | 1 2 . Storage 2 | . 2 . Processor . | . . . Hackware . | . . . Protection . | . . . Artifact . | . . . Weapon 3 | 2 . 1 Energy Gun 2 | 1 . 1 Energy Cannon . | . . . Ballistic Gun 1 | 1 . . Ballistic Cannon . | . . . Launcher . | . . . Special Weapon . | . . . Impact Weapon . | . . . Slashing Weapon . | . . . Piercing Weapon . | . . . Special Melee Weapon . | . . . Unidentified Prototypes . | . . . Parts Lost 8 | . . 8 Power 1 | . . 1 Propulsion 3 | . . 3 Utility 1 | . . 1 Weapon 3 | . . 3 Highest Loss Streak 8 | . . 8 To Critical Strikes . | . . . Average Slot Usage (%) 97 | . 99 80 Engine 13 | . 14 12 Leg 27 | . 28 24 Device 20 | . 21 12 Storage 7 | . 6 14 Energy Gun 13 | . 14 9 Ballistic Gun 13 | . 14 6 Naked Turns . | . . . Heaviest Build 20 | 8 20 20 Greatest Support 20 | 20 20 20 Greatest Overweight (x) 5 | . . 5 Average Overweight (x) . | . . . Largest Inventory Capacity 10 | 5 10 10 Average Capacity 7 | 5 7 10 Most Carried 9 | 3 9 9 Average Carried 5 | . 6 7 Final Capacity 10 | 5 10 10 Final Carried 9 | 3 9 6 Class Distribution -------------------- 91% | Mutant 8% | Scavenger-Mutant Dominant Class ---------------- Mutant | -10/Materials Mutant | -10/Mines Resources | -11 -10 -10 ----------- Run | Scr Mat Min Matter Collected 539 | 272 267 . Remotely . | . . . Salvage Created 445 | 34 400 11 Parts 38 | 5 33 . Haulers Intercepted . | . . . Recyclers Shooed . | . . . Parts Field Recycled . | . . . Retrieved Matter . | . . . Parts Self-Destructed . | . . . Prevented . | . . . Kills | -11 -10 -10 ------- Run | Scr Mat Min Combat Hostiles Destroyed 14 | 1 12 1 Guns 14 | 1 12 1 Classes Destroyed 5 | 1 3 1 Worker 1 | . 1 . Watcher 2 | . 2 . Swarmer 6 | . 6 . Grunt 7 | 1 6 . Assembled 1 | . . 1 Best Kill Streak 5 | 1 5 1 Combat Bots Only 5 | 1 5 1 Max Kills in Single Turn 1 | 1 1 1 Gunslinging . | . . . Exploded . | . . . Melee . | . . . Uniques/NPCs Destroyed . | . . . Combat | -11 -10 -10 -------- Run | Scr Mat Min Damage Taken 1163 | 45 497 621 Core 266 | 12 148 106 Absorbed by Shields . | . . . Core Remaining (%) 95 | 95 . . Volleys Fired 70 | 4 57 9 Largest 2 | 2 2 2 Hottest 70 | 70 70 70 Shots Fired 137 | 8 114 15 Gun 137 | 8 114 15 Cannon . | . . . Launcher . | . . . Special . | . . . Kinetic 68 | 4 57 7 Thermal 69 | 4 57 8 Explosive . | . . . Electromagnetic . | . . . Robot Hit Streak 10 | 5 10 3 Robot Miss Streak 5 | 1 5 3 Penetration Max . | . . . Secondary Targets 1 | . . 1 Max Gunslinging Chain 1 | . . 1 Shots Hit Robots 69 | 6 57 6 Core Hits 27 | 2 22 3 Critical Kills . | . . . Critical Parts Destroyed . | . . . Critical Strikes 4 | . 4 . Burn 4 | . 4 . Melee Attacks . | . . . Impact . | . . . Slashing . | . . . Piercing . | . . . Sneak Attacks . | . . . Combat Hostiles . | . . . Follow-up Attacks . | . . . Damage Inflicted 871 | 80 724 67 Guns 871 | 80 724 67 Cannons . | . . . Explosions . | . . . Melee . | . . . Ramming . | . . . Kinetic 473 | 28 399 46 Thermal 398 | 52 325 21 Explosive . | . . . Electromagnetic . | . . . Impact . | . . . Slashing . | . . . Piercing . | . . . Highest Corruption 6 | . 1 6 Average Corruption 2 | . 1 4 Corruption Purged . | . . . Corruption Blocked . | . . . Effects 3 | . 1 2 Message Errors 1 | . . 1 Matter Fused 2 | . 1 1 Overload Shots . | . . . Overflow Damage . | . . . Projectiles . | . . . Explosions . | . . . Melee . | . . . Knockbacks . | . . . Impact . | . . . Kinetic . | . . . Secondary . | . . . Self-Inflicted Damage . | . . . Shots . | . . . Rammed . | . . . Targets Rammed . | . . . Kicked . | . . . Crushed . | . . . Highest Temperature 60 | 60 45 9 Average Temperature 22 | 34 18 6 Received Heat Transfer 153 | 24 129 . Siege Activations . | . . . Robots Corrupted . | . . . Combat Hostiles . | . . . Parts Fried . | . . . Impact Corruptions . | . . . Robots Melted . | . . . Combat Hostiles . | . . . Parts Melted 4 | . 4 . Heat Transferred 1456 | 148 1258 50 Parts Sabotaged . | . . . Parts Stolen . | . . . Parts Stripped . | . . . Power Chain Reactions . | . . . Missiles Intercepted . | . . . Alert | -11 -10 -10 ------- Run | Scr Mat Min Peak Influence 375 | 20 375 90 Initial 75 | . 13 75 Average 136 | 4 163 61 Maximum Alert Level 1 | . 1 . Low Security (%) 78 | 100 73 100 Level 1 21 | . 26 . Level 2 . | . . . Level 3 . | . . . Level 4 . | . . . Level 5 . | . . . High Security . | . . . Max Security . | . . . Squads Dispatched . | . . . Investigation . | . . . Extermination . | . . . Reinforcement . | . . . Assault . | . . . Garrison . | . . . Intercept . | . . . Searches Triggered . | . . . Construction Impeded . | . . . Haulers Reinforced . | . . . Active Scanning Responses . | . . . Cargo Convoy Interrupts . | . . . Stealth | -11 -10 -10 --------- Run | Scr Mat Min Distress Signals 3 | . 2 1 Communications Jammed . | . . . Distress Signals . | . . . Times Spotted 28 | 1 20 7 Peak Tracking Total 5 | 1 5 4 Tactical Retreats 2 | . 2 . Traps | -11 -10 -10 ------- Run | Scr Mat Min Traps Triggered . | . . . Indirectly . | . . . Trap Hack Attempts . | . . . Triggered . | . . . Disarmed . | . . . Reprogrammed . | . . . Reused . | . . . Traps Extracted . | . . . Installed . | . . . Triggered . | . . . Machines | -11 -10 -10 ---------- Run | Scr Mat Min Machines Disabled . | . . . Max in Single Turn . | . . . Machines Sabotaged . | . . . Garrisons Compromised . | . . . Overloaded Fab Kills . | . . . Hacking | -11 -10 -10 --------- Run | Scr Mat Min Machines Accessed 4 | . 4 . Terminals 4 | . 4 . Fabricators . | . . . Repair Stations . | . . . Recycling Units . | . . . Scanalyzers . | . . . Garrison Access . | . . . Total Hacks 8 | . 8 . Successful 3 | . 3 . Failed 5 | . 5 . Catastrophic . | . . . Database Lockouts . | . . . Manual 8 | . 8 . Terminals 8 | . 8 . Fabricators . | . . . Repair Stations . | . . . Recycling Units . | . . . Scanalyzers . | . . . Garrison Access . | . . . Terminal Hacks . | . . . Fabricator Hacks . | . . . Repair Station Hacks . | . . . Recycling Unit Hacks . | . . . Scanalyzer . | . . . Garrison Access Hacks . | . . . Unauthorized Hacks 3 | . 3 . Terminals 3 | . 3 . Botnet 3 | . 3 . Fabricators . | . . . Repair Stations . | . . . Recycling Units . | . . . Scanalyzers . | . . . Garrison Access . | . . . Data Cores Recovered . | . . . Used . | . . . Hacking Detections 3 | . 3 . Full Trace Events 1 | . 1 . Feedback Events 1 | . 1 . Corruption 1 | . 1 . Feedback Blocked . | . . . Robot Schematics Acquired . | . . . Robots Built . | . . . Authchips . | . . . Time . | . . . Total Robot Build Rating . | . . . Part Schematics Acquired . | . . . Parts Built . | . . . Authchips . | . . . Time . | . . . Total Part Build Rating . | . . . Parts Repaired . | . . . Time . | . . . Parts Recycled . | . . . Recycled Matter . | . . . Retrieved Matter . | . . . Retrieved Components . | . . . Parts Scanalyzed . | . . . Part Schematics Acquired . | . . . Parts Damaged . | . . . Bothacking | -11 -10 -10 ------------ Run | Scr Mat Min Used RIF Installer . | . . . Robots Hacked . | . . . Non-combat . | . . . Combat . | . . . Robot Hacks Applied . | . . . Relay Couplers Released . | . . . Fabnet Peak Effective % . | . . . Robots Rewired . | . . . Allies Hacked . | . . . Hacks Repelled . | . . . Allies | -11 -10 -10 -------- Run | Scr Mat Min Total Allies . | . . . Largest Group . | . . . Highest-Rated Group . | . . . Highest-Rated Ally . | . . . Total Orders . | . . . Ally Attacks . | . . . Total Damage . | . . . Kills . | . . . Allies Corrupted . | . . . Allies Melted . | . . . Intel | -11 -10 -10 ------- Run | Scr Mat Min Robot Analysis Total . | . . . Derelict Logs Recovered . | . . . Drone Launches . | . . . Drone Recoveries . | . . . Exploration | -11 -10 -10 ------------- Run | Scr Mat Min Turns Passed 859 | 94 683 82 Spaces Moved 514 | 68 402 44 Core 17 | 16 . 1 Treads . | . . . Legs 497 | 52 402 43 Wheels . | . . . Hover . | . . . Flight . | . . . Fastest Speed 50 | 50 120 120 Average Speed 118 | 103 120 124 Slowest Speed 300 | 120 120 300 Overloaded Moves . | . . . Propulsion Burnouts . | . . . Robots Hopped . | . . . Cave-ins Triggered . | . . . Exploration Rate (%) 25 | 5 60 10 Regions Visited 2 Branch Regions 1 Pre-discovered Areas . | . . . Known Exits Taken . | . . . Unknown Exits Taken 2 | 1 1 . Scrap Searched . | . . . Spaces Dug . | . . . Terrain Destroyed . | . . . Melee . | . . . Projectile . | . . . AOE . | . . . Terrain Rammed . | . . . Walls Destroyed . | . . . Machines Disabled . | . . . Actions | -11 -10 -10 --------- Run | Scr Mat Min Total 626 | 80 490 56 Wait 8 | . 8 . Move 512 | 67 401 44 Hop . | . . . Pick Up 11 | 3 8 . Fast Attach 8 | 6 2 . Attach 3 | . . 3 Detach . | . . . Swap 6 | . 6 . Drop 8 | . 8 . Fire 70 | 4 57 9 Melee . | . . . Ram . | . . . Kick . | . . . Crush . | . . . Escape Stasis . | . . . Rewire . | . . . Trap . | . . . Miscellaneous . | . . . Route ------- -11/Scrapyard -10/Materials (discovered 2 exits: [*Mat] / [*Min]) -10/Mines History --------- Turn | Location | Event 2 | -11/Scrapyard | Met Revision 17 58 | -11/Scrapyard | Discovered new exit (range 8) 95 | -11/Scrapyard | Entered Materials 308 | -10/Materials | Build established: Mutant 397 | -10/Materials | Discovered new exit (range 13) 437 | -10/Materials | Core integrity fell below 50% 584 | -10/Materials | Discovered new exit (range 10) 778 | -10/Materials | Entered Mines 779 | -10/Mines | Assembled infested the area 784 | -10/Mines | Assisted by a Guerilla fighting off Assembled 792 | -10/Mines | Met a Derelict bent on vengeance 855 | -10/Mines | Core integrity fell below 20% 860 | -10/Mines | Destroyed by D-53 Grenadier with Mini Grenade Launcher Last Messages --------------- 00797_ System corrupted by crushing effect (+5). 00800_ as-84470 destroyed. 00802_ as-15904 suffers critical hit (Burn). 00802_ as-15904 destroyed. 00803_ System corrupted: Matter fused (-9). 00810_ 5G-2Z9(g) destroyed. 00816_ as-33974 destroyed. 00816_ Switching to secondary target: as-68493. 00817_ Aluminum Leg destroyed. 00819_ Assault Rifle destroyed. 00821_ Aluminum Leg destroyed. 00824_ Knocked back. 00833_ T6,GORR9EGORR/LNFPZG:&&TXRS6OJ 00840_ Sml. Laser destroyed. 00843_ U-05 Engineer builds a Wall. 00843_ U-05 Engineer lays Concrete. 00853_ Terrain Scanner destroyed. 00858_ Ion Engine destroyed. 00859_ The unstable cave ceiling collapses. 00859_ Aluminum Leg destroyed. Map ----- +----------------------------------------------------+ | | | | | | | | | | | | | | | | | | | | | | | | | | | | | | | | | | | | | | | | | ??????????#????????##### ####????????????????????? | | ???????????#????#### #????????????????????? | | ###?????????????# ##???????????????????? | | # ???#??#???### #???????????????????? | | ?????????## ##??????????????????? | | ?????????# d@ #??????????????????? | | ????????# d #??????????????????? | | # ??????#?# #??????????????????? | | # ?????#??## # ###??????????????????? | | #???????## ## #????????????????????? | | ???#??## ######## ???????????????????? | | """ ?????## ##???????####???????????????????? | | ""% ###### #???????????????????????????????? | | ""% !% #????#??????????????????????????? | | %% % #???#???????????????????????????? | | ### ####### ##?????#?????????????????????????? | | ??# ###### ###?#??????????????????????????????? | | ??# ##??????????????????????????????????? | | ??# ##???????#???????????????????????????? | | ??##### ##????????????????????????????????????? | | ???#??######????#????????????????????????????????? | | ?????????????????????????????????????????????????? | | ??????#????????#?????????????????????????????????? | | ?????#???????#???????????????????????????????????? | | ?????????????????????????????????????????????????? | | ?????????????????????????????????????????????????? | | ?????????????????????????????????????????????????? | | ?????????????????????????????????????????????????? | | ?????????????????????????????????????????????????? | | ?????????????????????????????????????????????????? | +----------------------------------------------------+ Best States ------------- Heat Dissipation 35 Energy Generation 10 Energy Capacity 250 Matter Stores 300 Matter Capacity 450 Sight Range 16 Terrain Scan Range 14 Terrain Scan Density 10 Evasion (%) 55 Item Schematics ----------------- None Robot Schematics ------------------ None Fabricated ------------ Nothing Alien Tech Used ----------------- None Achievements -------------- Quantum Hacking Challenges ------------ None Game ------ Seed LightBiocellSteel Manual? 0 Play Time 00:08:13 Cumulative 13.8 hours Start 2022.03.21 @ 20:46:58 End 2022.03.21 @ 20:53:55 Sessions 1 Manual Loads 0 Difficulty Rogue Special Mode None Game No. 17 Rogue 9 Adventurer 8 Explorer 0 Win Type - Total 1 Types 1/0/0/0/0/0/0/0/0 Lore% 38 Gallery% 34 Achievement% 36 Wizard Run 0 Options --------- ASCII 0 Keyboard 0 Movement Mouse Keybinds 0 Fullscreen 1 Font 18/Terminus Map View 76x50 Tactical HUD 1 Map Filters NONE Filters NONE Steam 1 RUN: 3f2d9505-558d-4b3e-b56e-72477713ac72